[Event "44th Chess Olympiad Open 2022"]
[Site "Chennai"]
[Date "2022.08.07"]
[Round "9.11"]
[White "Tristan, Leonardo"]
[Black "Jones, Gawain C B"]
[Result "0-1"]
[WhiteElo "2558"]
[BlackElo "2652"]
[Annotator "TA"]
[PlyCount "94"]
[EventDate "2022.??.??"]
[TimeControl "60"]

{[%evp 17,94,23,47,43,58,50,65,25,26,19,62,63,44,68,55,30,39,-21,-16,-112,-114,
-118,-114,-104,-73,-151,-123,-171,-161,-172,-156,-155,-145,-224,-214,-313,-313,
-301,-307,-317,-315,-312,-316,-283,-229,-270,-274,-275,-276,-287,-256,-253,
-223,-207,-214,-372,-366,-431,-440,-441,-432,-689,-664,-622,-592,-1113,-1104,
-29987,-29988,-29988,-29989,-29991,-29992,-29992,-29993,-29993,-29994,-29996,
-29997]} 1. d4 {[%emt 0:00:04] ChessBase II} Nf6 {[%emt 0:00:35]} 2. c4 {
[%emt 0:00:14]} g6 {[%emt 0:00:04]} 3. Nc3 {[%emt 0:00:09]} Bg7 {[%emt 0:00:04]
} 4. e4 {[%emt 0:00:09]} d6 {[%emt 0:00:03]} 5. Nf3 {[%emt 0:00:12]} O-O {
[%emt 0:00:08]} 6. Be2 {[%emt 0:00:09]} e5 {[%emt 0:00:04]} 7. d5 {[%emt 0:00:
00]} a5 {[%emt 0:00:04]} 8. h3 {[%emt 0:00:09]} Na6 {[%emt 0:01:00]} 9. Bg5 {
[%emt 0:05:01]} Qe8 {[%emt 0:01:03]} 10. g4 {[%emt 0:01:06] E92: King's Indian:
Classical: 6 Be2 e5:7 dxe5, 7 Be3 and Petrosian System without 7...Nbd7.} Nd7 {
[%emt 0:02:26][%cal Yf6d7,Yd7b6,Yb6a4,Ya4c3]} 11. a3 {[%emt 0:00:47]} Nb6 {
[%emt 0:04:13] [#]} 12. Be3 $146 {[%emt 0:02:22] White is slightly better.} ({
Predecessor:} 12. b3 Bd7 13. Rg1 Kh8 14. Rb1 Nc5 15. Be3 f5 16. gxf5 gxf5 17.
Qd2 Qe7 18. Bxc5 dxc5 {0-1 (81) Krasenkow,M (2671)-Amin,B (2693) Wijk aan Zee
2018 CBM 183 [ChessBase II]}) 12... Bd7 {[%emt 0:05:24]} 13. Qd2 {[%emt 0:00:
00]} Nc5 {[%emt 0:08:33]} 14. Bxc5 {[%emt 0:29:05]} dxc5 {[%emt 0:00:22]} 15.
Qe3 {[%emt 0:00:07]} Qe7 {[%emt 0:01:01]} 16. Nd2 {[%emt 0:00:32]} Na4 {
[%emt 0:07:41]} 17. Nb5 {[%emt 0:06:42]} (17. Nxa4 $14 Bxa4 18. h4) 17... c6 $1
$11 {[%emt 0:07:12]} (17... Nxb2 $2 18. Qb3 $18) ({Resist} 17... Bxb5 18. cxb5
Nb6 19. Rc1 $14) 18. dxc6 {[%emt 0:13:42]} (18. Nc3 $11 Nxc3 19. bxc3) 18...
bxc6 $17 {[%emt 0:00:43]} ({Much worse is} 18... Bxc6 $6 19. b3 Bxb5 20. cxb5
$11) 19. Nc3 {[%emt 0:00:05]} Nxc3 {[%emt 0:01:19]} 20. Qxc3 {[%emt 0:00:05]}
Bh6 {[%emt 0:03:02]} 21. Nf1 {[%emt 0:07:25]} (21. Nf3 $142) 21... Rfd8 {
[%emt 0:05:51] Black is more active.} 22. h4 {[%emt 0:15:27]} (22. Nh2 $17)
22... Bf4 $19 {[%emt 0:01:53]} 23. Rd1 {[%emt 0:00:07]} Be6 {[%emt 0:08:40]}
24. Rxd8+ {[%emt 0:02:14]} Qxd8 {[%emt 0:00:12]} 25. Ne3 {[%emt 0:02:56]} (25.
a4 $17 {might work better.}) 25... Qd4 {[%emt 0:08:47]} 26. Qxd4 {[%emt 0:00:
00]} (26. O-O {was necessary.}) 26... cxd4 {[%emt 0:00:05]} 27. Nc2 {[%emt 0:
00:00]} Rd8 {[%emt 0:07:45] [#] And now ...d3 would win.} 28. Bd3 {[%emt 0:00:
00]} Bxg4 {[%emt 0:01:33] Hoping for ...f5.} 29. O-O {[%emt 0:01:42]} f5 {
[%emt 0:03:39] Strongly threatening ...fxe4.} 30. f3 {[%emt 0:00:17]} Bh3 {
[%emt 0:06:31]} 31. Rb1 {[%emt 0:00:08]} fxe4 {[%emt 0:01:42]} 32. fxe4 {
[%emt 0:00:10]} Bg3 {[%emt 0:01:35] This bishop pair is nice.} 33. b4 {[%emt 0:
00:00]} Rb8 {[%emt 0:03:11]} 34. b5 {[%emt 0:02:28]} cxb5 {[%emt 0:02:25]} 35.
cxb5 {[%emt 0:01:33]} Bxh4 {[%emt 0:00:11]} 36. b6 $2 {[%emt 0:00:29]} (36. a4)
36... Bc8 {[%emt 0:00:53]} 37. Bc4+ {[%emt 0:00:39]} Kg7 {[%emt 0:00:16]} 38.
Bd5 {[%emt 0:00:22]} Bb7 {[%emt 0:01:29]} 39. Rb5 {[%emt 0:00:34]} (39. Bxb7
$142 Rxb7 40. Rb5) 39... Bxd5 {[%emt 0:03:25]} 40. exd5 {[%emt 0:00:22]
Endgame KRB-KRN} Bg5 {[%emt 0:00:44] [#] ...d3 is the strong threat.} 41. a4 {
[%emt 0:18:48]} d3 {[%emt 0:00:38]} 42. Na3 {[%emt 0:00:05]} d2 {[%emt 0:00:00]
Black mates.} 43. Rb1 {[%emt 0:00:04]} Rc8 {[%emt 0:02:32]} 44. b7 {[%emt 0:01:
47]} Rc1+ {[%emt 0:00:06]} 45. Kf2 {[%emt 0:00:04]} d1=Q {[%emt 0:00:00]} 46.
Rxc1 {[%emt 0:00:36]} Qd2+ {[%emt 0:01:04]} 47. Kf3 {[%emt 0:00:10]} e4+ {
[%emt 0:00:20] Weighted Error Value: White=0.67/Black=0.08 (flawless)} 0-1

[Event "44th Chess Olympiad Open 2022"]
[Site "Chennai"]
[Date "2022.08.07"]
[Round "9.11"]
[White "Haria, Ravi"]
[Black "Flores, Diego"]
[Result "1/2-1/2"]
[WhiteElo "2505"]
[BlackElo "2528"]
[Annotator "TA"]
[PlyCount "116"]
[EventDate "2022.??.??"]
[TimeControl "60"]

{[%evp 11,116,22,25,22,27,26,28,29,41,42,50,24,23,20,58,56,52,53,60,55,113,-3,
-7,0,0,-8,-10,-5,-8,-29,0,0,0,0,6,19,11,24,23,27,14,8,20,18,30,0,25,34,100,73,
71,73,43,45,118,94,104,48,275,247,320,285,296,282,324,22,298,235,229,0,0,0,0,0,
0,0,0,-58,-52,-57,-60,-60,0,24,16,23,29,43,54,0,0,0,0,0,0,0,0,0,0,0,0,0,0,0,0,
0,0]} 1. e4 {[%emt 0:00:04]} e5 {[%emt 0:00:24]} 2. Nf3 {[%emt 0:00:06]} Nc6 {
[%emt 0:00:24]} 3. Bc4 {[%emt 0:00:10]} Bc5 {[%emt 0:00:30]} 4. c3 {[%emt 0:00:
00]} Nf6 {[%emt 0:00:13]} 5. d3 {[%emt 0:00:06]} a6 {[%emt 0:01:17]} 6. O-O {
[%emt 0:03:33]} d6 {[%emt 0:00:56]} 7. a4 {[%emt 0:00:27] C54: Giuoco Piano: 4
c3 Nf6, main lines with 5 d4 and 5 d3.} Ba7 {[%emt 0:00:35]} 8. Nbd2 {[%emt 0:
00:00]} h6 {[%emt 0:03:53]} 9. Re1 {[%emt 0:00:46] White has an edge.} g5 {
[%emt 0:00:54]} 10. b4 {[%emt 0:01:12][%cal Yb2b4,Yb4b5]} Nh5 {[%emt 0:12:16]
And now ...g4 would win. 10...Nh7 is becoming the main line.} 11. g3 {[%emt 0:
07:06] [#]} Qf6 $146 {[%emt 0:16:04]} ({Predecessor:} 11... g4 12. Nh4 Nf4 13.
Rf1 Qf6 14. Kh1 Nh3 15. Qe2 Ne7 16. f3 Qg7 17. Qg2 O-O {1-0 (37) Marbourg,D 
(2303)-Dulany,L (2335) ICCF email 2019}) 12. d4 {[%emt 0:00:00]} g4 {[%emt 0:
04:10]} 13. b5 {[%emt 0:25:28]} Ne7 {[%emt 0:27:14]} 14. Nh4 {[%emt 0:01:28]}
Nf4 $1 {[%emt 0:03:32] ...Nh3+ is the strong threat.} 15. Bf1 {[%emt 0:04:08]}
Rg8 {[%emt 0:11:56]} 16. Nb3 {[%emt 0:15:27]} (16. Ba3 $16) 16... Nh3+ $11 {
[%emt 0:00:29]} 17. Bxh3 {[%emt 0:00:06]} gxh3 {[%emt 0:00:00]} 18. Qh5 {
[%emt 0:06:14]} Be6 {[%emt 0:04:00]} 19. Rb1 {[%emt 0:00:19]} axb5 {[%emt 0:01:
01]} 20. axb5 {[%emt 0:00:53]} Bb6 {[%emt 0:00:12][%cal Ya8a3]} (20... Rg4 {
is interesting.} 21. Nf5 Nxf5 22. exf5 Qxf5 23. Qxf5 Bxf5 24. Ra1 Bc2) 21. Qxh6
{[%emt 0:08:11]} Qxh6 {[%emt 0:05:24]} 22. Bxh6 {[%emt 0:00:02]} Bxb3 {[%emt 0:
03:05]} 23. Rxb3 {[%emt 0:00:05]} exd4 {[%emt 0:00:03]} 24. cxd4 {[%emt 0:01:
13]} Bxd4 {[%emt 0:00:02]} 25. Nf3 {[%emt 0:00:45]} Bc5 {[%emt 0:00:00]} 26.
Kf1 {[%emt 0:00:25]} f6 {[%emt 0:01:18]} 27. Ng1 {[%emt 0:02:08]} Ra4 {[%emt 0:
00:27]} 28. Bd2 {[%emt 0:01:05]} Ng6 {[%emt 0:01:23]} 29. Nxh3 {[%emt 0:01:25]}
Ne5 {[%emt 0:01:03]} ({Black should try} 29... Kf7 $14) 30. Re2 {[%emt 0:02:51]
} Rh8 {[%emt 0:00:26]} 31. Kg2 {[%emt 0:00:15]} Ra2 {[%emt 0:00:00]} 32. Nf4 {
[%emt 0:01:33]} Ng4 {[%emt 0:00:49]} (32... Bxf2 $14 33. Bc3 (33. Rxf2 Ng4 $17)
(33. Kxf2 Rxh2+ 34. Ng2 Rh1 $14) 33... Rxe2 34. Nxe2 Bc5) 33. h4 {[%emt 0:01:
17]} Nxf2 {[%emt 0:00:56] [#]} 34. Nd5 {[%emt 0:00:13]} (34. Kf3 $1 $16) 34...
Kd8 $2 {[%emt 0:00:40]} (34... Ng4 $14) 35. Nxf6 $18 {[%emt 0:00:38]} Kc8 {
[%emt 0:00:28]} 36. Rf3 {[%emt 0:00:28]} Nd1 {[%emt 0:00:44][%cal Yd1e3]} 37.
Kf1 {[%emt 0:00:33]} Rf8 {[%emt 0:00:31]} 38. Bh6 $2 {[%emt 0:00:31]} (38. g4
$18) 38... Ra1 $2 {[%emt 0:00:00]} 39. Re1 {[%emt 0:00:50]} (39. Bxf8 $2 {
leads to mate.} Ne3+ 40. Kf2 Rf1#) 39... Rf7 {[%emt 0:00:25] [#]} 40. Ke2 $2 {
[%emt 0:00:49]} (40. e5 $1 $18 {[%cal Re5e6] Black must now prevent e6.} dxe5
41. Ke2) 40... Nc3+ $1 $11 {[%emt 0:00:23]} 41. Rxc3 {[%emt 0:08:15]} Ra2+ {
[%emt 0:01:48]} 42. Kf3 {[%emt 0:07:02][%cal Yc3c5] Threatens to win with Rxc5!
} Rxf6+ {[%emt 0:06:14]} 43. Bf4 {[%emt 0:00:05] Strongly threatening Rcc1.}
Bb4 {[%emt 0:00:20]} 44. Rec1 {[%emt 0:01:50]} ({Better is} 44. Rce3 $11) 44...
Bxc3 $15 {[%emt 0:00:19]} 45. Rxc3 {[%emt 0:00:00] Endgame KRR-KRB} Rb2 {
[%emt 0:00:55]} 46. Kg4 {[%emt 0:08:23]} Rg6+ {[%emt 0:03:25]} (46... Rxb5 $15
47. h5 Kd7) 47. Kf5 $11 {[%emt 0:02:45]} Rg8 {[%emt 0:02:23]} 48. Bxd6 {
[%emt 0:01:18]} Kd7 {[%emt 0:00:36]} 49. Bf4 {[%emt 0:00:41]} ({But not} 49.
Bxc7 $2 Rxb5+ 50. e5 Rc8 $19) 49... Rxb5+ {[%emt 0:00:45]} 50. e5 {[%emt 0:00:
56]} (50. Kf6 $1 $14) 50... Rf8+ {[%emt 0:00:00] The position is equal.} 51.
Kg6 {[%emt 0:03:00]} Rb6+ {[%emt 0:01:11]} 52. Kg7 {[%emt 0:00:25]} Rf5 {
[%emt 0:00:35]} 53. e6+ {[%emt 0:00:36]} Kxe6 {[%emt 0:03:44] aiming for ...c5.
} 54. Rxc7 {[%emt 0:00:05]} Rb3 {[%emt 0:06:05]} 55. Kg6 {[%emt 0:01:22]} Rf6+
{[%emt 0:00:24]} 56. Kg7 {[%emt 0:00:15]} Rf5 {[%emt 0:01:34]} 57. Kg6 {
[%emt 0:00:11]} Rf6+ {[%emt 0:00:27]} 58. Kg7 {[%emt 0:00:06]} Rf5 {[%emt 0:00:
30] Black defended with fortune. Weighted Error Value: White=0.28 (precise) /
Black=0.29 (precise)} 1/2-1/2

[Event "44th Chess Olympiad Open 2022"]
[Site "Chennai"]
[Date "2022.08.07"]
[Round "9.12"]
[White "Moussard, Jules"]
[Black "Quesada Perez, Yasser"]
[Result "1-0"]
[WhiteElo "2672"]
[BlackElo "2568"]
[Annotator "TA"]
[PlyCount "73"]
[EventDate "2022.??.??"]
[TimeControl "60"]

{[%evp 17,73,32,37,37,38,32,35,28,54,19,59,57,42,18,64,68,62,63,70,75,97,110,
97,30,39,25,34,11,12,14,28,37,66,69,95,12,31,37,251,131,519,524,558,524,637,
477,520,520,520,520,858,852,1150,1061,29970,29971,29971,6287]} 1. e4 {[%emt 0:
00:00]} c5 {[%emt 0:00:04]} 2. Nf3 {[%emt 0:00:09]} Nc6 {[%emt 0:00:06]} 3. d4
{[%emt 0:01:17]} cxd4 {[%emt 0:00:07]} 4. Nxd4 {[%emt 0:00:04]} g6 {[%emt 0:00:
00]} 5. c4 {[%emt 0:01:02]} Nf6 {[%emt 0:00:08]} 6. Nc3 {[%emt 0:00:07]} Nxd4 {
[%emt 0:00:06]} 7. Qxd4 {[%emt 0:00:06]} d6 {[%emt 0:00:03]} 8. Be2 {[%emt 0:
00:00]} Bg7 {[%emt 0:00:06]} 9. O-O {[%emt 0:06:13]} O-O {[%emt 0:00:10]} 10.
Qd3 {[%emt 0:00:13] B36: Sicilian: Maroczy Bind: Gurgenidze System.} a5 {
[%emt 0:04:01]} 11. Be3 {[%emt 0:11:41]} a4 {[%emt 0:00:53]} 12. f4 $5 {
[%emt 0:09:33][%cal Yf2f4,Yf4f5] White is slightly better. A promising side
line.} Qa5 {[%emt 0:05:24] [#]} 13. Rad1 $5 $146 {[%emt 0:09:28] New and
interesting.} ({Predecessor:} 13. Rac1 Bd7 14. Bd4 Bc6 15. a3 Rac8 16. Qe3 Nd7
17. Bxg7 Kxg7 18. Rfd1 Qc5 19. Kf2 {0-1 (65) Keymer,V (2654)-Xiong,J (2685)
Chess.com INT 2022}) 13... Ng4 {[%emt 0:31:18]} 14. Bxg4 {[%emt 0:01:30]} (14.
Nd5 {keeps more tension.} Nxe3 15. Nxe7+ Kh8 16. Qxe3 Be6 17. Nd5) 14... Bxg4 {
[%emt 0:00:05]} 15. Rc1 {[%emt 0:00:36][%cal Yd1c1,Yc1c3,Yc3h3,Yh3g3]} (15. Rd2
{keeps more tension.} f5 16. c5 fxe4 17. Qc4+) 15... Bxc3 {[%emt 0:25:09]} (
15... f5 $11) 16. Rxc3 $14 {[%emt 0:00:22] aiming for f5.} Bd7 {[%emt 0:00:56]}
17. f5 {[%emt 0:03:19]} Bc6 $1 {[%emt 0:04:20]} 18. Bd4 {[%emt 0:02:21] White
is more active.} f6 {[%emt 0:03:15]} 19. fxg6 $1 {[%emt 0:00:00]} Qh5 {[%emt 0:
00:54]} 20. Qd2 {[%emt 0:05:53]} (20. gxh7+ $16 Qxh7 21. c5 Qxe4 22. Qxe4 Bxe4
23. cxd6) 20... hxg6 $11 {[%emt 0:06:24]} 21. Rh3 {[%emt 0:02:08]} Qg4 {
[%emt 0:00:05]} 22. Rg3 {[%emt 0:04:51]} Qh5 {[%emt 0:00:00]} (22... Qxe4 $2
23. Re1 (23. Re3 Qg4 $16) 23... Qf5 24. Qh6 $18 (24. Rxe7 Rae8 $11)) 23. Qe3 {
[%emt 0:11:42]} Ra5 {[%emt 0:00:12]} 24. c5 $36 {[%emt 0:00:00] White fights
for an advantage.} e5 {[%emt 0:00:06]} 25. Qc3 {[%emt 0:02:16]} Raa8 {[%emt 0:
05:43]} 26. Be3 {[%emt 0:01:00]} (26. Qc4+ $16 Rf7 27. Be3 (27. cxd6 exd4 28.
Rxf6 Qd1+ 29. Kf2 Qd2+ 30. Kf1 Bb5 $11)) 26... Bxe4 {[%emt 0:04:46]} 27. cxd6 {
[%emt 0:00:24] Qc4+ is the strong threat.} Qe2 {[%emt 0:02:01] [#] Inhibits
Qc4+.} ({Black should play} 27... Rf7 $14) 28. d7 {[%emt 0:02:20]} (28. Qb4 $1
$18 {[%cal Rb4e4]} Bd3 29. Re1) 28... Rad8 $2 {[%emt 0:00:59] [#] This move
loses the game for Black.} (28... Bd3 $2 29. Re1 Qc2 30. Qb4) (28... a3 $16 29.
bxa3 Qb5) 29. Qb4 $1 $18 {[%emt 0:00:00][%csl Ya4,Ye4]} Bd3 {[%emt 0:02:22]
[%csl Gd3][%cal Re2f1]} 30. Re1 {[%emt 0:00:07]} Qc2 {[%emt 0:01:50]} 31. Qe7 {
[%emt 0:01:47] Bh6 would kill now.} Qc7 {[%emt 0:00:00]} 32. Bh6 {[%emt 0:01:
43][%csl Gh6,Yd3,Yf8][%cal Re7g7]} Qxd7 {[%emt 0:00:00]} 33. Bxf8 {[%emt 0:00:
09][%cal Ye1d1] Black must now prevent Rd1!} Qd4+ {[%emt 0:00:00]} (33... Bf5
$142 34. Kh1 e4) 34. Kh1 {[%emt 0:00:15][%csl Gf8][%cal Re7g7]} Rxf8 {[%emt 0:
00:00]} 35. Rd1 {[%emt 0:00:00]} Rf7 {[%emt 0:01:39]} 36. Qe8+ {[%emt 0:00:05]}
Rf8 {[%emt 0:00:05]} 37. Qe6+ {[%emt 0:00:04] Weighted Error Value: White=0.22
(precise) /Black=0.71} 1-0

[Event "44th Chess Olympiad Open 2022"]
[Site "Chennai"]
[Date "2022.08.07"]
[Round "9.12"]
[White "Lagarde, Maxime"]
[Black "Quesada Perez, Luis Ernesto"]
[Result "1-0"]
[WhiteElo "2631"]
[BlackElo "2549"]
[Annotator "TA"]
[PlyCount "105"]
[EventDate "2022.??.??"]
[TimeControl "60"]

{[%evp 17,105,8,6,0,0,-18,-27,-24,-26,-75,-43,-83,-30,-33,-26,-31,-18,-35,-26,
-97,-15,-14,-12,-7,-10,-17,-29,-29,-16,-19,-18,-33,0,-28,-31,-27,-39,-42,-47,
-63,-14,-27,0,0,0,0,0,0,0,0,66,81,62,41,98,87,87,80,149,151,138,154,169,72,295,
272,292,259,339,331,402,435,422,407,583,563,763,693,3641,2689,3714,2644,1631,
1535,29979,29980,29979,29980,29981,29982]} 1. e4 {[%emt 0:00:03]} c5 {[%emt 0:
00:00]} 2. Nc3 {[%emt 0:00:12]} d6 {[%emt 0:00:15]} 3. Nge2 {[%emt 0:00:07]}
Nf6 {[%emt 0:00:55]} 4. g3 {[%emt 0:00:15]} g6 {[%emt 0:01:00]} 5. Bg2 {
[%emt 0:00:05]} Nc6 {[%emt 0:05:10]} 6. d3 {[%emt 0:01:26]} Bg7 {[%emt 0:00:24]
} 7. O-O {[%emt 0:00:17]} Rb8 {[%emt 0:02:05]} 8. f4 {[%emt 0:02:18] 8.Bg5 is
a critical line.} O-O {[%emt 0:03:10]} 9. h3 {[%emt 0:00:27]} Nd7 {[%emt 0:00:
00]} 10. g4 {[%emt 0:07:44] B25: Closed Sicilian: 3 g3, lines without early
Be3.} b5 {[%emt 0:04:36][%cal Yb7b5,Yb5b4]} 11. Ng3 {[%emt 0:05:23]} c4 {
[%emt 0:03:55] [#]} 12. dxc4 $5 $146 {[%emt 0:06:36] Black has an edge. An
interesting novelty.} ({Predecessor:} 12. Kh2 cxd3 13. cxd3 Nd4 14. Nce2 b4 15.
Be3 Nxe2 16. Qxe2 Nc5 17. Rfc1 Ba6 18. Bxc5 dxc5 19. Rxc5 {0-1 (64) Simonian,H
(2494)-Negi,P (2615) Chotowa 2010}) 12... b4 {[%emt 0:12:58]} 13. Nce2 {
[%emt 0:13:43]} (13. Nd5 $11) 13... Ba6 {[%emt 0:00:34]} 14. e5 {[%emt 0:00:00]
} dxe5 {[%emt 0:02:45]} 15. b3 $11 {[%emt 0:02:12]} (15. Bxc6 Qb6+ 16. Nd4 Rfd8
$17) 15... exf4 {[%emt 0:02:13]} 16. Bxf4 {[%emt 0:00:18]} Qb6+ {[%emt 0:00:50]
} 17. Kh2 {[%emt 0:05:41]} Rbd8 {[%emt 0:01:03]} 18. Qc1 {[%emt 0:00:42]} (18.
Rc1 $11) 18... Bb7 {[%emt 0:01:00]} (18... Bxa1 $17 19. Qxa1 f6) 19. Bh6 {
[%emt 0:05:36]} Bxa1 {[%emt 0:14:53]} (19... Bxh6 {is interesting.} 20. Qxh6
Nce5 21. Bxb7 Qxb7 22. Qe3 Qb6) 20. Qxa1 {[%emt 0:01:06][%csl Gh6][%cal Ra1g7]
[#]} (20. c5 $2 Nxc5 $1 21. Qxa1 f6 $1 22. Bxf8 Rxf8 $17) 20... Nce5 $1 {
[%emt 0:00:07]} 21. Bxb7 {[%emt 0:06:35] Chess con chili.} Qxb7 {[%emt 0:00:09]
} 22. Bxf8 {[%emt 0:00:07]} Rxf8 {[%emt 0:00:21]} 23. Qd4 {[%emt 0:00:40]} Rd8
{[%emt 0:01:19] aiming for ...Nf3+.} 24. Qf4 {[%emt 0:00:00] Against Nf3+} f6 {
[%emt 0:00:36]} 25. Qe3 {[%emt 0:10:08]} Qb6 {[%emt 0:00:00]} 26. Qxb6 {
[%emt 0:00:33]} axb6 {[%emt 0:00:21]} 27. Rd1 {[%emt 0:00:13]} Ra8 {[%emt 0:00:
18]} 28. Nc1 {[%emt 0:00:10]} Rc8 {[%emt 0:14:35]} (28... Kf7 $15) 29. Nd3 {
[%emt 0:07:49]} Nxd3 {[%emt 0:00:53]} (29... b5 $5) 30. cxd3 {[%emt 0:00:07]
Endgame KRN-KRN} Ra8 {[%emt 0:00:09]} 31. Rd2 {[%emt 0:00:31]} e5 {[%emt 0:00:
08]} 32. Nf1 {[%emt 0:01:38]} Kf7 {[%emt 0:00:00]} 33. Ne3 {[%emt 0:00:12]} Ke6
{[%emt 0:04:17]} (33... Nc5 $11) 34. Nd5 $14 {[%emt 0:00:05] And now Nc7+
would win.} Kd6 {[%emt 0:00:04] Against Nc7} 35. Nxb4 {[%emt 0:03:35] White is
more active.} f5 {[%emt 0:00:05]} (35... Kc5 $14 36. Nd5 Kd4) 36. d4 {[%emt 0:
02:43]} exd4 {[%emt 0:02:10]} 37. gxf5 {[%emt 0:00:00]} Nf6 {[%emt 0:00:34]} (
37... Kc5 $142 38. Nd3+ Kd6) 38. fxg6 $16 {[%emt 0:00:35]} ({Don't take} 38.
Rxd4+ Kc5 39. Nc2 Rxa2 40. b4+ Kc6 $14) 38... hxg6 {[%emt 0:00:05]} 39. a4 {
[%emt 0:03:25]} ({But not} 39. Rxd4+ Kc5 40. Nc2 (40. Rf4 Kxb4 41. Rxf6 Rxa2+
42. Kg3 Kxb3 $16) 40... Rxa2 41. b4+ Kc6 $16) 39... Re8 {[%emt 0:00:04]} 40.
Nd5 {[%emt 0:01:05]} (40. Rxd4+ $18 {and the rest is easy.} Kc5 41. Rf4 Re2+
42. Kg1 Kxb4 43. Rxf6 Kxb3 44. Rxb6+ Kxc4 45. Rxg6) 40... Nd7 $2 {[%emt 0:01:
27] Black cannot hold the game after this.} (40... Nxd5 $16 {might work better.
} 41. Rxd4 Re2+ 42. Kg1 Re3) 41. Rxd4 $18 {[%emt 0:31:46]} Re2+ {[%emt 0:30:03]
} 42. Kg3 {[%emt 0:00:43]} Kc5 {[%emt 0:00:00]} 43. Rf4 {[%emt 0:00:00]} Ra2 {
[%emt 0:00:00]} 44. b4+ {[%emt 0:00:00]} Kc6 {[%emt 0:00:00]} 45. Re4 {[%emt 0:
00:00]} Kd6 {[%emt 0:00:00] [#]} (45... Rxa4 {is a better defense.} 46. Re6+
Kb7) 46. Nxb6 $1 {[%emt 0:00:00]} Nxb6 {[%emt 0:00:00] [#] KRN-KR} (46... Ra3+
47. Kf4) 47. c5+ $1 {[%emt 0:00:00]} Kd7 {[%emt 0:00:00]} 48. cxb6 {[%emt 0:00:
00]} Rxa4 {[%emt 0:00:00]} 49. Rc4 {[%emt 0:00:00] Intending b7 and mate.} Ra6
{[%emt 0:00:00]} 50. Rc7+ {[%emt 0:00:00]} Kd8 {[%emt 0:00:00]} 51. Rc6 {
[%emt 0:00:00] White mates.} Ra3+ {[%emt 0:00:00]} 52. Kg4 {[%emt 0:00:00]} Ra4
{[%emt 0:00:00]} 53. Rc4 {[%emt 0:00:00] Weighted Error Value: White=0.11 
(very precise) /Black=0.49} 1-0

[Event "44th Chess Olympiad Open 2022"]
[Site "Chennai"]
[Date "2022.08.07"]
[Round "9.12"]
[White "Albornoz Cabrera, Carlos Daniel"]
[Black "Cornette, Matthieu"]
[Result "1-0"]
[WhiteElo "2566"]
[BlackElo "2551"]
[Annotator "TA"]
[PlyCount "63"]
[EventDate "2022.??.??"]
[TimeControl "60"]

{[%evp 11,63,27,33,16,16,13,20,14,14,0,10,-14,16,9,21,11,17,26,29,0,26,12,12,
15,31,30,28,31,41,0,37,38,41,20,85,83,80,86,81,81,199,199,215,200,193,197,202,
200,457,460,440,410,768,720]} 1. Nf3 {[%emt 0:00:06]} Nf6 {[%emt 0:00:41]} 2.
c4 {[%emt 0:00:05]} e6 {[%emt 0:00:03]} 3. Nc3 {[%emt 0:00:05]} d5 {[%emt 0:00:
00]} 4. d4 {[%emt 0:00:04]} Bb4 {[%emt 0:00:19]} 5. Qa4+ {[%emt 0:00:32]} Nc6 {
[%emt 0:00:06]} 6. e3 {[%emt 0:00:04]} O-O {[%emt 0:00:17]} 7. Qc2 {[%emt 0:00:
00] D38: Queen's Gambit Declined: Ragozin Defence (4 Nf3 Bb4).} Re8 {[%emt 0:
00:00]} 8. Bd2 {[%emt 0:00:36]} Bf8 {[%emt 0:00:37]} 9. a3 {[%emt 0:00:59] The
position is equal.} b6 {[%emt 0:06:35]} 10. cxd5 {[%emt 0:05:15]} exd5 {
[%emt 0:03:24]} 11. Bd3 {[%emt 0:00:08]} Bb7 {[%emt 0:25:30]} 12. O-O {[%emt 0:
00:00] [#]} a6 $146 {[%emt 0:03:03]} ({Predecessor:} 12... Rc8 13. b4 Ne7 14.
b5 Ng6 15. Rfc1 Ne4 16. Be1 Bd6 17. Ne2 Nh4 18. Nxh4 Qxh4 {½-½ (60) Korobov,
A (2718)-Caruana,F (2765) Riga 2021}) 13. b4 {[%emt 0:05:07]} g6 {[%emt 0:00:
00]} 14. Rfc1 {[%emt 0:04:56]} Bd6 {[%emt 0:08:51]} 15. b5 {[%emt 0:02:31]} Na5
{[%emt 0:02:27]} 16. bxa6 {[%emt 0:06:27]} Bxa6 {[%emt 0:00:10]} 17. Nb5 {
[%emt 0:00:36]} Nc4 {[%emt 0:14:05]} 18. Bxc4 {[%emt 0:04:08]} dxc4 {[%emt 0:
00:00]} 19. a4 {[%emt 0:03:29]} Ne4 {[%emt 0:00:39]} 20. Rab1 {[%emt 0:07:11]}
Bb7 {[%emt 0:03:46]} 21. Qxc4 {[%emt 0:05:53]} Bd5 {[%emt 0:22:21]} 22. Qc2 {
[%emt 0:00:43]} Ng5 {[%emt 0:02:21] [#]} (22... c5 $1 $11 {keeps the balance.})
23. Nxg5 $1 $16 {[%emt 0:04:50]} (23. Nxd6 $2 Nxf3+ 24. gxf3 Qg5+ 25. Kf1 {[#]}
Bxf3 $1 $19) 23... Qxg5 {[%emt 0:00:01][%csl Gd5][%cal Rg5g2]} 24. e4 $1 {
[%emt 0:00:10]} Bxh2+ {[%emt 0:00:11] Decoy} 25. Kxh2 {[%emt 0:00:53]} Qh4+ {
[%emt 0:00:52]} (25... Qh5+ $16 26. Kg1 Rxe4) 26. Kg1 $18 {[%emt 0:00:01]} Bxe4
{[%emt 0:00:53]} 27. Qb3 {[%emt 0:06:06]} (27. Qxc7 Rec8 28. Qd6 (28. Qxb6 {
gets mated.} Qg4 29. Rxc8+ Rxc8 30. f3 Bxf3 31. Kf2 Qxg2+ 32. Ke3 Qe2+ 33. Kf4
Re8) (28. Qxc8+ Rxc8 29. Rxc8+ Kg7 $14) 28... Bxb1) 27... Bxb1 {[%emt 0:00:32]}
28. Rxb1 {[%emt 0:00:05]} ({Much less strong is} 28. Rxc7 $6 Re6 $14) 28... Re2
{[%emt 0:00:18]} 29. Qf3 {[%emt 0:01:53] Chess con chili.} Rae8 {[%emt 0:00:18]
} (29... Qe4 {might work better.} 30. Qxe4 Rxe4) 30. Nxc7 {[%emt 0:02:06]} R8e7
{[%emt 0:00:02]} 31. Bb4 {[%emt 0:01:59] Nd5 is the strong threat.} R7e4 {
[%emt 0:00:31]} (31... Qe4 $142 32. Qxe4 R7xe4) 32. Nd5 {[%emt 0:01:23]
Weighted Error Value: White=0.09 (flawless) /Black=0.33} 1-0